Cogmind - Beta 13 @@@ ROGUE MODE // 2024.07.16 @ 17:39:05 Player: CrossedViper Result: Self-destructed Performance ------------- Evolutions (5) 2500 Regions Visited (5) 1000 Robots Destroyed (79) 395 Value Destroyed (1968) 1968 Prototype IDs (17) 340 Alien Tech Used (0) 0 Bonus (85) 85 TOTAL SCORE: 6288 Bonus ------- High Alert Combat Kills 85 Cogmind --------- Core Integrity 717/1000 Matter 255/300 Energy 351/351 System Corruption 8% Temperature Hot (236) Movement Hovering (80) Location -5/Factory Parts ------- > --- POWER (2) -------- Micro Fission Core Momentum-Ion Engine > --- PROPULSION (6) --- Hovering Antigrav Exoskeleton Linear Gravjet > --- UTILITY (6) ------ Machine Analyzer Core Analyzer Improved Weapon Cycler Improved Hacking Suite > --- WEAPON (3) ------- Hvy. Thermal Phase Construct/C > --- INVENTORY (5) ---- Improved Ion Engine Huge Storage Unit Long-range Proton Cannon Heavy Proton Cannon Subdweller Shrapnel Launcher Peak State ------------ > --- POWER ------------ Micro Fission Core Momentum-Ion Engine > --- PROPULSION ------- Hovering Antigrav Exoskeleton Improved Hover Unit Antigrav System Linear Gravjet Linear Gravjet > --- UTILITY ---------- Scrap Engine Machine Analyzer Core Analyzer Improved Weapon Cycler Improved Hacking Suite > --- WEAPON ----------- Hvy. Thermal Phase Construct/C > --- INVENTORY -------- Improved Ion Engine Huge Storage Unit Long-range Proton Cannon Heavy Proton Cannon Subdweller Shrapnel Launcher [Rating: 75] Favorites ----------- Power Ion Engine Engine Ion Engine Power Core Micro Fission Core Propulsion Subdweller Monowheel Treads Light Treads Leg Cargo Legs Wheel Subdweller Monowheel Hover Unit Constructs Utility Scrap Shield Device Scrap Engine Storage Small Storage Unit Processor Machine Analyzer Hackware Improved Hacking Suite Protection Scrap Shield Weapon Subdweller Laser Energy Gun Subdweller Laser Energy Cannon Subdweller Beam Cannon Ballistic Gun Assault Rifle Launcher Subdweller Shrapnel Launcher Build | -11 -10 -10 -8 -6 -5 ------- Run | Yrd Mat Sub Rec Fac Fac Slots Evolved 10 | . . . . 8 2 Power 1 | . . . . 1 . Propulsion 4 | . . . . 4 . Utility 4 | . . . . 2 2 Weapon 1 | . . . . 1 . Parts Attached 65 | 7 . 25 6 7 20 Power 9 | 1 . 4 . . 4 Engine 8 | 1 . 4 . . 3 Core 1 | . . . . . 1 Reactor . | . . . . . . Propulsion 17 | 2 . 8 . 2 5 Treads 3 | 2 . . . 1 . Leg 1 | . . . . 1 . Wheel 8 | . . 8 . . . Hover 5 | . . . . . 5 Flight . | . . . . . . Utility 15 | 2 . 5 1 2 5 Device 3 | 1 . . 1 . 1 Storage 3 | 1 . 2 . . . Processor 2 | . . . . . 2 Hackware 4 | . . . . 2 2 Protection 3 | . . 3 . . . Artifact . | . . . . . . Weapon 24 | 2 . 8 5 3 6 Energy Gun 7 | 1 . 4 1 . 1 Energy Cannon 7 | . . 2 4 . 1 Ballistic Gun 6 | 1 . 2 . 1 2 Ballistic Cannon . | . . . . . . Launcher 4 | . . . . 2 2 Special Weapon . | . . . . . . Impact Weapon . | . . . . . . Slashing Weapon . | . . . . . . Piercing Weapon . | . . . . . . Special Melee Weapon . | . . . . . . Unidentified Prototypes 4 | . . . . . 4 Corrupted Parts 1 | . . . . . 1 System Corruption 2 | . . . . . 2 Parts Lost 19 | . . 5 . 8 6 Power 6 | . . 2 . 1 3 Propulsion 7 | . . 1 . 4 2 Utility 3 | . . 1 . 1 1 Weapon 3 | . . 1 . 2 . Highest Loss Streak 4 | . . 3 . 4 3 To Critical Strikes 2 | . . 1 . 1 . Average Slot Usage (%) 77 | . 100 85 67 27 53 Engine 12 | . 14 13 13 2 5 Treads 5 | . 28 2 5 4 . Wheel 17 | . . 25 14 . . Hover 1 | . . . . . 15 Device 5 | . 14 1 13 5 6 Storage 2 | . 14 2 . . . Protection 6 | . . 11 . . . Energy Gun 11 | . 14 16 5 . . Energy Cannon 7 | . . 9 10 2 . Ballistic Gun 3 | . 14 2 2 . . Naked Turns . | . . . . . . Heaviest Build 35 | 13 13 35 22 21 23 Greatest Support 55 | 40 40 40 40 55 38 Greatest Overweight (x) 11 | . . 11 2 . 3 Average Overweight (x) . | . . 1 . . . Largest Inventory Capacity 8 | 8 8 8 8 5 5 Average Capacity 5 | 7 8 5 5 5 5 Most Carried 8 | 2 2 8 8 5 5 Average Carried 4 | 1 2 5 4 3 3 Final Capacity 8 | 8 8 8 5 5 5 Final Carried 8 | 2 2 8 5 2 5 Scrap Engine Consumption 48 | . . . 29 2 17 Constructs Created 7 | . . . 4 . 3 Constructs Modified 15 | . . . 5 3 7 Class Distribution -------------------- 44% | Subdweller-Mutant 33% | Mutant 15% | Construct 3% | Hacker-Mutant Dominant Class ---------------- Mutant | -10/Materials Subdweller-Mutant | -10/Subcaves Construct | -8/Recycling Mutant | -6/Factory Hacker-Mutant | -5/Factory Resources | -11 -10 -10 -8 -6 -5 ----------- Run | Yrd Mat Sub Rec Fac Fac Matter Collected 1210 | 291 . 318 124 . 477 Remotely . | . . . . . . Salvage Created 3850 | 110 . 895 1626 201 1018 Parts 195 | 6 . 52 64 16 57 Haulers Intercepted 1 | . . . 1 . . Recyclers Shooed 12 | . . . 11 . 1 Parts Field Recycled . | . . . . . . Retrieved Matter . | . . . . . . Parts Self-Destructed 22 | . . 22 . . . Prevented . | . . . . . . Kills | -11 -10 -10 -8 -6 -5 ------- Run | Yrd Mat Sub Rec Fac Fac Combat Hostiles Destroyed 41 | . . 19 9 6 7 Guns 18 | . . 12 5 1 . Cannons 15 | . . 7 4 1 3 AOE 8 | . . . . 4 4 Classes Destroyed 17 | 2 . 4 5 3 3 Worker 5 | . . . . . 5 Builder 3 | . . . 1 1 1 Tunneler 2 | 2 . . . . . Hauler 1 | . . . 1 . . Recycler 20 | 1 . . 15 . 4 Mechanic 1 | . . . . . 1 Operator 2 | . . . . 1 1 Turret 2 | . . 2 . . . Watcher 2 | . . . . . 2 Swarmer 9 | . . 6 . . 3 Grunt 6 | . . 1 1 3 1 Brawler 2 | . . . 2 . . Duelist 2 | . . . . 1 1 Protector 1 | . . . 1 . . Sentry 7 | . . . 5 1 1 Programmer 2 | . . . . 1 1 Subdweller 12 | . . 12 . . . Best Kill Streak 5 | 3 . 3 4 5 5 Combat Bots Only 5 | . . 3 2 4 5 Max Kills in Single Turn 2 | 1 . 1 1 1 2 Gunslinging . | . . . . . . Exploded 2 | . . . . 1 2 Melee . | . . . . . . Uniques/NPCs Destroyed . | . . . . . . Combat | -11 -10 -10 -8 -6 -5 -------- Run | Yrd Mat Sub Rec Fac Fac Hostile Shots Fired 321 | . . 130 8 127 56 Missed 94 | . . 46 2 32 14 Damage Taken 4127 | . . 1297 157 1694 979 Core 948 | . . 105 102 458 283 Absorbed by Shields . | . . . . . . Regen/Repaired (Parts) 237 | . . . . 44 193 Core Remaining (%) 54 | 100 . . 17 46 . Volleys Fired 268 | 7 . 93 70 32 66 Largest 2 | 2 . 2 2 1 1 Hottest 159 | 70 . 140 159 67 72 Shots Fired 379 | 14 . 181 87 32 65 Gun 234 | 14 . 142 51 13 14 Cannon 135 | . . 39 36 11 49 Launcher 10 | . . . . 8 2 Special . | . . . . . . Kinetic 116 | 7 . 29 44 21 15 Thermal 263 | 7 . 152 43 11 50 Explosive . | . . . . . . Electromagnetic . | . . . . . . Robot Hit Streak 43 | 4 . 43 18 8 17 Robot Miss Streak 6 | 2 . 3 3 3 6 Penetration Max . | . . . . . . Secondary Targets 1 | . . 1 . . . Max Gunslinging Chain 1 | . . 1 . . . Shots Hit Robots 258 | 7 . 125 64 22 40 Core Hits 113 | 4 . 39 28 17 25 Critical Kills 3 | . . 2 1 . . Critical Parts Destroyed 1 | . . 1 . . . Critical Strikes 4 | . . 3 1 . . Meltdown 2 | . . 1 1 . . Destroy 2 | . . 2 . . . Melee Attacks . | . . . . . . Impact . | . . . . . . Slashing . | . . . . . . Piercing . | . . . . . . Sneak Attacks . | . . . . . . Combat Hostiles . | . . . . . . Follow-up Attacks . | . . . . . . Damage Inflicted 7270 | 82 . 2547 1350 1308 1983 Guns 2997 | 82 . 1751 677 240 247 Cannons 2765 | . . 796 673 135 1161 Explosions 1492 | . . . . 917 575 Melee . | . . . . . . Ramming 16 | . . . . 16 . Kinetic 2375 | 44 . 231 568 1157 375 Thermal 4879 | 38 . 2316 782 135 1608 Explosive . | . . . . . . Electromagnetic . | . . . . . . Impact . | . . . . . . Slashing . | . . . . . . Piercing . | . . . . . . Highest Corruption 8 | . . . . 1 8 Average Corruption 4 | . . . . 1 5 Corruption Purged . | . . . . . . Corruption Blocked . | . . . . . . Effects 18 | . . . . 4 14 Message Errors 4 | . . . . 1 3 Matter Fused 5 | . . . . 2 3 Energy Discharges 5 | . . . . 1 4 Data Loss (minor) 2 | . . . . . 2 Data Loss (major) 1 | . . . . . 1 Weapon Failures 1 | . . . . . 1 Overload Shots . | . . . . . . Overflow Damage 200 | . . . 25 33 142 Projectiles 108 | . . . 25 . 83 Explosions 92 | . . . . 33 59 Melee . | . . . . . . Knockbacks . | . . . . . . Impact . | . . . . . . Kinetic . | . . . . . . Secondary . | . . . . . . Self-Inflicted Damage 350 | . . . . 243 107 Shots 8 | . . . . 6 2 Rammed 1 | . . . . 1 . Targets Rammed 8 | . . . . 8 . Kicked 7 | . . . . 7 . Crushed . | . . . . . . Highest Temperature 565 | 27 . 234 565 11 273 Average Temperature 87 | 12 . 67 126 6 59 Received Heat Transfer 636 | . . 249 18 261 108 Effects 6 | . . . 6 . . Shutdowns 1 | . . . 1 . . Energy Bleed 3 | . . . 3 . . Short Circuit 1 | . . . 1 . . Damage (core) 1 | . . . 1 . . Siege Activations . | . . . . . . Robots Corrupted . | . . . . . . Combat Hostiles . | . . . . . . Parts Fried . | . . . . . . Impact Corruptions . | . . . . . . Robots Melted 2 | . . 1 1 . . Combat Hostiles . | . . . . . . Parts Melted 6 | . . 3 3 . . Heat Transferred 5695 | 111 . 3033 1043 185 1323 Parts Sabotaged . | . . . . . . Parts Stolen . | . . . . . . Parts Stripped . | . . . . . . Power Chain Reactions . | . . . . . . Alert | -11 -10 -10 -8 -6 -5 ------- Run | Yrd Mat Sub Rec Fac Fac Peak Influence 582 | 15 9 . 353 582 538 Initial 340 | . 9 . 244 340 272 Average 150 | 6 4 . 121 475 292 Maximum Alert Level 2 | . . . 1 2 2 Low Security (%) 66 | 100 100 . 81 . 5 Level 1 29 | . . . 18 41 91 Level 2 4 | . . . . 58 2 Level 3 . | . . . . . . Level 4 . | . . . . . . Level 5 . | . . . . . . High Security . | . . . . . . Max Security . | . . . . . . Squads Dispatched 2 | . . . . 1 1 Investigation . | . . . . . . Extermination . | . . . . . . Reinforcement 1 | . . . . 1 . Assault . | . . . . . . Garrison 1 | . . . . . 1 Intercept . | . . . . . . Searches Triggered . | . . . . . . Construction Impeded 1 | . . . . 1 . Haulers Reinforced . | . . . . . . Active Scanning Responses . | . . . . . . Cargo Convoy Interrupts . | . . . . . . Stealth | -11 -10 -10 -8 -6 -5 --------- Run | Yrd Mat Sub Rec Fac Fac Distress Signals . | . . . . . . Communications Jammed . | . . . . . . Distress Signals . | . . . . . . Times Spotted 71 | . . 38 6 11 16 Peak Tracking Total 6 | . . 4 2 6 4 Tactical Retreats 5 | . . 4 . 1 . Traps | -11 -10 -10 -8 -6 -5 ------- Run | Yrd Mat Sub Rec Fac Fac Traps Triggered 3 | . . 1 . . 2 Indirectly . | . . . . . . Trap Hack Attempts . | . . . . . . Triggered . | . . . . . . Disarmed . | . . . . . . Reprogrammed . | . . . . . . Reused . | . . . . . . Traps Extracted . | . . . . . . Installed . | . . . . . . Triggered 1 | . . 1 . . . Machines | -11 -10 -10 -8 -6 -5 ---------- Run | Yrd Mat Sub Rec Fac Fac Machines Disabled 7 | . . 3 . 2 2 Max in Single Turn 2 | . . 1 . 1 2 Garrison Access 1 | . . . . . 1 Machines Repaired . | . . . . . . Machines Dismantled . | . . . . . . Machines Sabotaged . | . . . . . . Overloaded Fab Kills . | . . . . . . Hacking | -11 -10 -10 -8 -6 -5 --------- Run | Yrd Mat Sub Rec Fac Fac Machines Accessed 18 | . . 2 11 . 5 Terminals 8 | . . . 6 . 2 Fabricators 1 | . . . . . 1 Repair Stations 1 | . . . . . 1 Recycling Units 5 | . . . 5 . . Scanalyzers . | . . . . . . Garrison Access 1 | . . . . . 1 Total Hacks 37 | . . 3 22 . 12 Successful 26 | . . 3 14 . 9 Failed 10 | . . . 7 . 3 Catastrophic 2 | . . . 2 . . Database Lockouts 1 | . . . 1 . . Manual 22 | . . . 17 . 5 Terminals 22 | . . . 16 . 6 Fabricators 2 | . . . . . 2 Repair Stations 3 | . . . . . 3 Recycling Units 6 | . . . 6 . . Scanalyzers . | . . . . . . Garrison Access 1 | . . . . . 1 Terminal Hacks 11 | . . 3 6 . 2 Record 2 | . . 2 . . . Part Schematic 1 | . . . 1 . . Branch Access Points 2 | . . . 1 . 1 Terminal Index 2 | . . . 1 . 1 Recycling Unit Index 1 | . . . 1 . . Alert Level 1 | . . . 1 . . Unreport Threat 1 | . . . 1 . . Derelict Proto ID Bank 1 | . . 1 . . . Fabricator Hacks 2 | . . . . . 2 Load Schematic 1 | . . . . . 1 Build 1 | . . . . . 1 Repair Station Hacks 3 | . . . . . 3 Scan Component 1 | . . . . . 1 Repair 1 | . . . . . 1 Refit 1 | . . . . . 1 Recycling Unit Hacks . | . . . . . . Scanalyzer . | . . . . . . Garrison Access Hacks 1 | . . . . . 1 Seal Access 1 | . . . . . 1 Unauthorized Hacks 9 | . . . 8 . 1 Terminals 4 | . . . 3 . 1 Botnet 4 | . . . 3 . 1 Fabricators . | . . . . . . Repair Stations . | . . . . . . Recycling Units 5 | . . . 5 . . Tunnel 5 | . . . 5 . . Scanalyzers . | . . . . . . Garrison Access . | . . . . . . Data Cores Recovered 2 | . . . . 1 1 Used . | . . . . . . Hacking Detections 8 | . . . 6 . 2 Full Trace Events 1 | . . . 1 . . Feedback Events . | . . . . . . Feedback Blocked . | . . . . . . Robot Schematics Acquired . | . . . . . . Robots Built . | . . . . . . Authchips . | . . . . . . Time . | . . . . . . Total Robot Build Rating . | . . . . . . Part Schematics Acquired 1 | . . . 1 . . Parts Built 1 | . . . . . 1 Authchips 1 | . . . . . 1 Time 51 | . . . . . 51 Total Part Build Rating 1 | . . . . . 1 Parts Repaired 1 | . . . . . 1 Time 32 | . . . . . 32 Parts Recycled . | . . . . . . Recycled Matter . | . . . . . . Retrieved Matter . | . . . . . . Retrieved Components . | . . . . . . Parts Scanalyzed . | . . . . . . Part Schematics Acquired . | . . . . . . Parts Damaged . | . . . . . . Bothacking | -11 -10 -10 -8 -6 -5 ------------ Run | Yrd Mat Sub Rec Fac Fac Used RIF Installer . | . . . . . . Robots Hacked . | . . . . . . Non-combat . | . . . . . . Combat . | . . . . . . Robot Hacks Applied . | . . . . . . Relay Couplers Released 2 | . . . . . 2 Machine Destruction 2 | . . . . . 2 Fabnet Peak Effective % . | . . . . . . Robots Rewired . | . . . . . . Allies Hacked . | . . . . . . Hacks Repelled . | . . . . . . Allies | -11 -10 -10 -8 -6 -5 -------- Run | Yrd Mat Sub Rec Fac Fac Total Allies . | . . . . . . Largest Group . | . . . . . . Highest-Rated Group . | . . . . . . Highest-Rated Ally . | . . . . . . Total Orders . | . . . . . . Ally Attacks . | . . . . . . Total Damage . | . . . . . . Kills . | . . . . . . Allies Corrupted . | . . . . . . Allies Melted . | . . . . . . Intel | -11 -10 -10 -8 -6 -5 ------- Run | Yrd Mat Sub Rec Fac Fac Robot Analysis Total . | . . . . . . Derelict Logs Recovered 1 | . . 1 . . . Drone Launches . | . . . . . . Drone Recoveries . | . . . . . . Exploration | -11 -10 -10 -8 -6 -5 ------------- Run | Yrd Mat Sub Rec Fac Fac Turns Passed 8582 | 138 736 4589 2144 273 702 Spaces Moved 3449 | 69 13 1777 850 132 608 Core 293 | 4 . 164 . 9 116 Treads 758 | 65 13 123 466 58 33 Legs 65 | . . . . 65 . Wheels 1874 | . . 1490 384 . . Hover 459 | . . . . . 459 Flight . | . . . . . . Fastest Speed 36 | 50 160 95 95 50 36 Average Speed 130 | 153 160 157 125 124 55 Slowest Speed 600 | 160 160 600 130 130 208 Overloaded Moves . | . . . . . . Propulsion Burnouts . | . . . . . . Robots Hopped . | . . . . . . Cave-ins Triggered . | . . . . . . Exploration Rate (%) 32 | 4 4 69 97 5 16 Regions Visited 5 Branch Regions 2 Pre-discovered Areas 5 | . . . 5 . . Known Exits Taken . | . . . . . . Unknown Exits Taken 5 | 1 1 1 1 1 . Scrap Searched 12 | . . 12 . . . Spaces Dug 16 | . . . . . 16 Terrain Destroyed 128 | . . 3 10 41 74 Melee . | . . . . . . Projectile 29 | . . 3 10 . 16 AOE 99 | . . . . 41 58 Terrain Rammed . | . . . . . . Walls Destroyed . | . . . . . . Machines Disabled . | . . . . . . Actions | -11 -10 -10 -8 -6 -5 --------- Run | Yrd Mat Sub Rec Fac Fac Total 7154 | 84 728 3381 1844 205 912 Wait 3254 | . 716 1427 887 26 198 Move 3444 | 68 12 1776 849 131 608 Hop . | . . . . . . Pick Up 40 | 2 . 23 6 . 9 Fast Attach 37 | 7 . 10 3 4 13 Attach 22 | . . 10 2 3 7 Detach 7 | . . 1 2 1 3 Swap 6 | . . 5 1 . . Drop 51 | . . 25 18 . 8 Fire 268 | 7 . 93 70 32 66 Melee . | . . . . . . Ram 1 | . . . . 1 . Kick 7 | . . . . 7 . Crush . | . . . . . . Escape Stasis . | . . . . . . Rewire 7 | . . 1 6 . . Trap . | . . . . . . Miscellaneous 10 | . . 10 . . . Route ------- -11/Scrapyard -10/Materials -10/Subcaves -8/Recycling -6/Factory -5/Factory (discovered 4 exits: Upp x2 / Ext x2) History --------- Turn | Location | Event 10 | -11/Scrapyard | Discovered new exit (range 16) 139 | -11/Scrapyard | Entered Materials 311 | -10/Materials | Build established: Mutant 846 | -10/Materials | Discovered new exit (range 7) 875 | -10/Materials | Entered Subcaves 987 | -10/Subcaves | Discovered new exit (range 10) 1045 | -10/Subcaves | Shifting Twisted Machinery released Sub. Laser 1068 | -10/Subcaves | Shifting Twisted Machinery released Sub. Beam Cannon 1076 | -10/Subcaves | A swath of the cavern ceiling suddenly collapsed 1197 | -10/Subcaves | Ambushed by Subdwellers from Twisted Machinery 1256 | -10/Subcaves | Lost 3 parts (1p1n1w) 1571 | -10/Subcaves | Build established: Subdweller-Mutant 1842 | -10/Subcaves | A swath of the cavern ceiling suddenly collapsed 1958 | -10/Subcaves | Disturbed a concealed Subdweller 2171 | -10/Subcaves | Visited 4L-MR0's lab 2412 | -10/Subcaves | Shifting Twisted Machinery released Sub. Machine Gun 2417 | -10/Subcaves | Shifting Twisted Machinery released Sub. Power Source 2739 | -10/Subcaves | Disturbed a concealed Subdweller 2857 | -10/Subcaves | Visited Clippyterm 5245 | -10/Subcaves | Found Cargo Legs 5443 | -10/Subcaves | Build established: Mutant 5464 | -10/Subcaves | Entered Recycling 5566 | -8/Recycling | Found Scrap Engine 6553 | -8/Recycling | Build established: Construct 6610 | -8/Recycling | Discovered new exit (range 11) 7067 | -8/Recycling | Core integrity fell below 50% 7083 | -8/Recycling | Core integrity fell below 20% 7608 | -8/Recycling | Entered Factory 7608 | -6/Factory | Evolved 8 slots: Power x1, Propulsion x4, Utility x2, Weapon x1 7747 | -6/Factory | Attached Cargo Legs, gained temporary slots: Utility x2 7762 | -6/Factory | Discovered new exit (range 15) 7775 | -6/Factory | Lost 4 parts (1p2n1w) 7881 | -6/Factory | Core integrity fell below 50% 7881 | -6/Factory | Entered another Factory area 7881 | -5/Factory | Evolved 2 slots: Utility x2 7899 | -5/Factory | Build established: Mutant 7909 | -5/Factory | Identified exit to Upper Caves 7909 | -5/Factory | Identified exit to Extension 8092 | -5/Factory | Repaired Sub. Shrapnel Launcher 8159 | -5/Factory | Fabricated Huge Storage Unit? 8323 | -5/Factory | Lost 3 parts (2p1n) 8568 | -5/Factory | Garrison activated, responded to threat 8583 | -5/Factory | Self-destructed Last Messages --------------- 08568_ ALERT: Activating Garrison Access F001. 08568_ S-27 Virus destroyed. 08568_ Imp. Hover Unit destroyed. 08568_ Destroyed Imp. Hover Unit. 08568_ Slug penetrates Wall. 08571_ Penetrated by Slug. 08575_ #JLW9AKK7ASAON L/EQ#IEU5PHB3 08576_ L-41 Fighter destroyed. 08577_ Penetrated by Slug. 08579_ S-27 Virus destroyed. 08580_ Scrap Engine modifies Hvy. Thermal Penetrator Construct/C: Critical -2/Meltdown, Max Integrity +19, Shot Heat +25 Renamed Hvy. Thermal Phase Construct/C. 08580_ Penetrated by Slug. 08580_ S-27 Virus destroyed. 08582_ Scrap Engine destroyed. 08582_ Penetrated by Slug. 08582_ R-10 Processor collects VTOL Module. Map ----- +----------------------------------------------------+ | ???????????????????????????????????""""????????""" | | ?????????????????"""???????????????""""????????""" | | ?????????????????"""???????????????""""?????????? | | ?????????????????"""???????????????""""? ????????# | | ???????????????????????????????????""""? ?###???## | | ???????????????????????????????????????? ?# ??? | | ???????????????????????????????????????? ## """" " | | ??????????????"""??????????????????????? ## """" " | | ??????????????"""?###################### ## """" " | | ??????????????"""?# ## """" " | | ??????????????????# ## """" " | | ??????????????"""?+ ## """" " | | ??????????????"""?;%= ## """" " | | ??????????????""" ; ## | | ????????????????? ; ## | | ????????????????## ##+##/### | | ???????????????## ### | | ???????????????# ; ;;##+###### | | ???????????????# ; ; % % ;## # | | ???????????????#;; R ; # """ # | | ??????????????##; ; # """ + | | ??????????????? %Y ;## """ # ###### | | ????????????????? ; # # #???# | | ???????????????????# ;## # #???# | | ???????????????????# % ;#####+### #???# | | ???????????????????#; @! ;#???????# #???# | | ???????????????????###;; ;;###???????# #???# | | ?????????????????????####### #????????# ####???# | | ????"""?????????????????????? #???????# ???????# | | ?????G"???????????????????????##???????# ???????# | | ????"""????????????????????????????????# ???????# | | ""?????????????????????????????????????? ???????# | | ""?????????????????????????????????????? ????????? | | ""?????????????????????????????????????? ??"""???? | | ???????????????????????????????????????? ??"""???? | | ""?"""?????????????????????????????????????"""???? | | ""?"""??????????????????????????????"""??????????? | | ""?"""??????????????????????????????"""??????????? | | ????????????????????????????????????"""??????????? | | ????????????????????????????????????"""??????????? | | ?????????????????????????????????????????????????? | | ?????????????????????????????????????????????????? | | ?????????????????????????????????????????????????? | | ?????????????????????????????????????????????????? | | ?????????????????????????????????????????????????? | | ?????????????????????????????????????????????????? | | ?????????????????????????????????????????????????? | | ?????????????????????????????????????????????????? | | ?????????????????????????????????????????????????? | | ?????????????????????????????????????????????????? | +----------------------------------------------------+ Best States ------------- Heat Dissipation 40 Energy Generation 21 Energy Capacity 351 Matter Stores 300 Matter Capacity 300 Sight Range 16 Terrain Scan Density 10 Armor Coverage 800 Weapon Cycling 20 Evasion (%) 57 Core Analysis 6 Recoil Reduction 2 Offensive Hacking 22 Defensive Hacking 10 Authchip Count 1 Item Schematics ----------------- Huge Storage Unit | -8/Recycling | Hacked Robot Schematics ------------------ None Fabricated ------------ Huge Storage Unit | x1 | -5/Factory | Authchip Alien Tech Used ----------------- None Achievements -------------- None Challenges ------------ None Game ------ Seed TerrabombClaymoresCharger Manual? 0 Play Time 00:39:27 Cumulative 839.2 hours Start 2024.07.16 @ 17:00:39 End 2024.07.16 @ 17:39:05 Sessions 1 Manual Loads 0 Difficulty Rogue Special Mode None Game No. 532 Rogue 525 Adventurer 0 Explorer 7 Win Type - Total 56 Types 21/5/19/2/0/1/6/1/1 Lore% 90 Gallery% 97 Achievement% 84 Wizard Run 0 Options --------- Layout 2 ASCII 0 Keyboard 0 Movement Numpad Keybinds 0 Fullscreen 1 Font 24/Tamsyn Map View 50x44 Zoom Use 0% Tactical HUD 1 Map Filters NONE Filters NONE Steam 1 RUN: 67db34fe-5d09-450d-bf6a-ae9ec7a4324e